bitfinex/quotes_SOLUSD_20230701
["timestamp","ask_amount","ask_price","bid_price","bid_amount"]
[1688236126106,23.033,18.365,18.358,38.1699172]
[1688236126306,23.031,18.367,18.358,38.1699172]
[1688236126508,11.92368603,18.366,18.358,38.1699172]
[1688236127411,34.95468603,18.366,18.358,38.1699172]
[1688236127614,23.031,18.366,18.358,38.1699172]
[1688236144916,23.031,18.366,18.358,15.1289172]
[1688236145424,11.92368603,18.365,18.356,15.1289172]
[1688236145604,23.035,18.363,18.356,15.1289172]
[1688236146407,23.033,18.365,18.356,38.1719172]
[1688236146621,11.92368603,18.369,18.356,38.1719172]
[1688236146807,55.0,18.368,18.356,38.1719172]
[1688236147008,12.26379136,18.367,18.356,38.1719172]
[1688236147210,55.0,18.366,18.356,38.1719172]
[1688236147410,12.26379136,18.365,18.356,38.1719172]
[1688236147920,23.034,18.364,18.356,38.1719172]
[1688236149227,78.032,18.366,18.356,38.1719172]
[1688236149405,6.4895861,18.365,18.356,49.00911642]
[1688236161029,6.4895861,18.365,18.356,38.1719172]
[1688236162829,6.4895861,18.365,18.356,49.00911642]
[1688236167633,29.5225861,18.365,18.356,15.1289172]
[1688236167825,29.5225861,18.365,18.35,23.051]
[1688236167826,75.0,18.364,18.35,23.051]
[1688236168131,24.69,18.36,18.35,23.051]
[1688236168325,18.80315125,18.363,18.351,17.12000737]
[1688236168537,23.039,18.361,18.353,23.047]
[1688236168833,18.80315125,18.36,18.353,23.047]
[1688236170440,41.84215125,18.36,18.353,23.047]
[1688236170819,41.84215125,18.36,18.354,17.12000737]
[1688236173638,41.84215125,18.36,18.353,17.12000737]
[1688236175542,41.84215125,18.36,18.351,17.12000737]
[1688236177234,66.53215125,18.36,18.351,17.12000737]
[1688236178240,66.53215125,18.36,18.35,17.12000737]
[1688236180417,125.84515125,18.36,18.349,33.88919922]
[1688236180623,23.044,18.356,18.349,33.88919922]
[1688236181543,23.044,18.356,18.347,23.054]
[1688236181741,18.80315125,18.355,18.348,17.12000737]
[1688236181941,23.047,18.354,18.348,17.12000737]
[1688236184643,18.80315125,18.355,18.348,17.12000737]
[1688236185022,41.84815125,18.355,18.348,17.12000737]
[1688236185426,23.045,18.355,18.348,17.12000737]
[1688236185642,23.045,18.355,18.348,40.17400737]
[1688236185840,23.045,18.355,18.348,23.054]
[1688236188544,23.044,18.357,18.348,23.054]
[1688236188741,73.80315125,18.356,18.349,17.12000737]
[1688236189850,73.80315125,18.356,18.348,23.054]
[1688236190527,18.80315125,18.356,18.348,33.89119922]
[1688236190838,18.80315125,18.358,18.349,17.12000737]
[1688236191044,18.80315125,18.358,18.351,23.049]
[1688236195945,41.84515125,18.358,18.351,23.049]
[1688236196341,41.84515125,18.358,18.35,17.12000737]
[1688236196543,23.045,18.355,18.347,23.054]
[1688236197237,18.80315125,18.354,18.347,17.12000737]
[1688236197441,41.85015125,18.354,18.347,17.12000737]
[1688236197742,41.85015125,18.354,18.347,40.17500737]
[1688236197937,18.80315125,18.354,18.347,40.17500737]
[1688236198142,18.80315125,18.356,18.347,40.17500737]
[1688236200754,41.84815125,18.356,18.347,40.17500737]
[1688236202059,55.0,18.355,18.347,40.17500737]
[1688236202250,55.0,18.355,18.347,23.055]
[1688236202251,41.84915125,18.354,18.347,23.055]
[1688236202551,41.84915125,18.354,18.344,10.83719922]
[1688236202552,41.84915125,18.354,18.342,59.371]
[1688236202754,24.69,18.35,18.343,11.18339993]
[1688236202959,41.85715125,18.349,18.34,23.063]
[1688236203141,96.85715125,18.349,18.34,23.063]
[1688236204151,96.85715125,18.349,18.339,3.10682277]
[1688236204351,96.85715125,18.349,18.338,6.19247114]
[1688236204861,96.85715125,18.349,18.336,23.068]
[1688236205041,96.85715125,18.349,18.337,7.71838846]
[1688236205355,205.14615125,18.349,18.337,7.71838846]
[1688236205558,205.14615125,18.349,18.332,17.12000737]
[1688236205751,205.14615125,18.349,18.336,23.068]
[1688236206053,96.85715125,18.349,18.336,23.068]
[1688236206256,96.85715125,18.349,18.337,17.12000737]
[1688236206453,96.85715125,18.349,18.34,23.063]
[1688236206752,41.85715125,18.349,18.34,23.063]
[1688236209137,18.80315125,18.349,18.34,23.063]
[1688236209341,18.80315125,18.35,18.341,17.12000737]
[1688236209552,18.80315125,18.35,18.343,23.06]
[1688236209755,23.051,18.351,18.343,23.06]
[1688236215052,23.051,18.351,18.34,24.75]
[1688236215359,23.053,18.349,18.341,27.62245656]
[1688236221545,1.56310946,18.353,18.345,23.057]
[1688236221746,23.044,18.357,18.346,9.1419806]
[1688236221953,23.041,18.359,18.349,23.052]
[1688236222364,18.80315125,18.358,18.349,23.052]
[1688236222567,41.84415125,18.358,18.349,23.052]
[1688236222767,18.80315125,18.359,18.35,24.73]
[1688236222953,18.80315125,18.359,18.352,23.048]
[1688236223350,23.037,18.361,18.353,6.06563774]
[1688236223670,23.037,18.361,18.353,29.11263774]
[1688236223961,23.037,18.361,18.353,23.047]
[1688236238265,18.80315125,18.365,18.354,65.83719922]
[1688236238576,23.032,18.366,18.357,23.042]
[1688236239176,4.81917288,18.367,18.358,16.79914119]
[1688236239387,27.84917288,18.367,18.359,23.039]
[1688236239568,23.03,18.367,18.359,23.039]
[1688236242769,128.147,18.373,18.359,23.039]
[1688236242770,23.028,18.369,18.359,23.039]
[1688236242971,59.255,18.379,18.366,23.03]
[1688236243164,59.255,18.379,18.366,82.324]
[1688236243165,18.80315125,18.379,18.366,82.324]
[1688236243367,23.017,18.378,18.367,16.79914119]
[1688236243776,18.80315125,18.377,18.369,23.027]
[1688236244174,18.80315125,18.379,18.37,16.79914119]
[1688236244373,18.80315125,18.379,18.371,23.024]
[1688236244679,18.80315125,18.383,18.371,23.024]
[1688236245781,23.015,18.379,18.371,23.024]
[1688236245987,55.0,18.382,18.371,23.024]
[1688236246176,5.64316797,18.381,18.371,23.024]
[1688236246379,78.014,18.38,18.371,23.024]
[1688236246582,5.64316797,18.379,18.371,23.024]
[1688236246792,28.65816797,18.379,18.371,23.024]
[1688236247097,23.015,18.379,18.371,23.024]
[1688236247974,2.76060202,18.379,18.371,23.024]
[1688236248975,25.77560202,18.379,18.369,23.026]
[1688236249171,25.77560202,18.379,18.365,59.295]
[1688236249395,23.015,18.379,18.368,23.028]
[1688236249989,23.015,18.379,18.369,17.12000737]
[1688236250291,23.015,18.379,18.37,23.025]
[1688236250494,5.30122874,18.383,18.371,17.12000737]
[1688236250699,23.015,18.379,18.371,40.14400737]
[1688236251088,23.015,18.379,18.371,23.024]
[1688236252995,55.0,18.378,18.369,23.026]
[1688236253191,23.02,18.376,18.365,59.296]
[1688236253496,23.02,18.376,18.366,2.21803597]
[1688236253681,55.0,18.378,18.368,23.028]
[1688236253880,78.017,18.378,18.368,23.028]
[1688236254090,1.53074233,18.377,18.368,23.028]
[1688236255280,24.54874233,18.377,18.368,23.028]
[1688236255499,23.018,18.377,18.368,23.028]
[1688236256185,23.018,18.377,18.364,23.033]
[1688236256384,63.07372396,18.376,18.365,4.86670435]
[1688236256686,23.023,18.373,18.364,23.033]
[1688236257085,23.023,18.373,18.365,0.76711727]
[1688236257481,23.023,18.373,18.365,23.032]
[1688236259897,55.0,18.376,18.365,23.032]
[1688236260103,26.70536254,18.375,18.366,1.65508982]
[1688236260303,55.0,18.374,18.366,23.03]
[1688236260515,78.021,18.374,18.366,23.03]
[1688236261904,55.0,18.374,18.366,23.03]
[1688236262704,24.54,18.38,18.366,23.03]
[1688236263004,23.017,18.378,18.37,23.025]
[1688236263212,55.0,18.377,18.37,23.025]
[1688236263714,82.64567198,18.382,18.37,23.025]
[1688236263908,23.016,18.379,18.37,23.025]
[1688236264106,27.64567198,18.382,18.37,23.025]
[1688236264312,5.44374157,18.381,18.371,2.21803597]
[1688236264614,23.015,18.38,18.371,25.24303597]
[1688236264916,5.44374157,18.379,18.371,23.025]
[1688236265117,55.0,18.378,18.371,23.025]
[1688236266729,23.015,18.379,18.371,23.025]
[1688236266906,23.014,18.381,18.371,23.025]
[1688236267105,57.58179947,18.38,18.371,23.025]
[1688236267506,78.014,18.38,18.371,23.025]
[1688236267723,1.79519992,18.379,18.371,23.025]
[1688236268408,23.014,18.38,18.372,1.44264407]
[1688236268610,23.015,18.379,18.371,23.025]
[1688236271913,23.015,18.379,18.37,23.026]
[1688236282517,23.015,18.379,18.366,59.291]
[1688236282721,3.64383775,18.378,18.367,57.21803597]
[1688236283017,26.66083775,18.378,18.369,23.027]
[1688236283328,23.017,18.378,18.369,23.027]
[1688236283531,23.017,18.378,18.37,2.21803597]
[1688236283827,23.017,18.378,18.369,23.027]
[1688236284008,23.017,18.378,18.369,23.026]
[1688236284611,23.017,18.378,18.368,23.027]
[1688236284816,23.017,18.378,18.368,2.21803597]
[1688236285114,1.46041394,18.377,18.369,23.027]
[1688236285313,23.019,18.376,18.369,23.027]
[1688236285922,23.019,18.376,18.368,23.028]
[1688236286446,23.014,18.38,18.369,55.0]
[1688236286620,23.014,18.38,18.372,23.023]
[1688236287433,23.014,18.38,18.369,145.5882]
[1688236287434,23.014,18.38,18.37,23.025]
[1688236287632,23.014,18.38,18.371,2.21803597]
[1688236288233,23.014,18.38,18.37,2.21803597]
[1688236288627,2.97136108,18.379,18.37,2.21803597]
[1688236288932,23.018,18.377,18.37,2.21803597]
[1688236289234,23.018,18.377,18.369,113.6152]
[1688236293743,23.018,18.377,18.368,23.028]
[1688236293942,55.0,18.376,18.366,23.03]
[1688236294140,25.47417841,18.375,18.366,23.03]
[1688236294435,23.021,18.375,18.366,23.03]
[1688236296441,23.018,18.377,18.366,23.03]
[1688236296644,2.56089378,18.376,18.367,2.21803597]
[1688236296850,25.57989378,18.376,18.368,23.028]
[1688236297046,23.019,18.376,18.368,23.028]
[1688236304552,23.019,18.376,18.366,23.03]
[1688236304850,23.019,18.376,18.367,1.196855]
[1688236305352,23.019,18.376,18.367,24.226855]
[1688236305652,23.019,18.376,18.367,23.03]
[1688236309750,23.017,18.378,18.368,2.21803597]
[1688236309953,55.0,18.377,18.371,23.025]
[1688236310658,78.017,18.377,18.369,23.026]
[1688236314952,78.017,18.377,18.365,59.295]
[1688236315264,4.52565658,18.376,18.366,25.24803597]
[1688236315467,23.022,18.374,18.366,23.03]
[1688236315761,55.0,18.373,18.366,23.03]
[1688236315943,78.023,18.373,18.366,23.03]
[1688236318166,55.0,18.373,18.366,23.03]
[1688236318463,55.0,18.374,18.366,23.03]
[1688236319249,78.021,18.374,18.366,23.03]
[1688236320367,55.0,18.374,18.366,23.03]
[1688236320664,55.0,18.375,18.366,23.03]
[1688236322248,23.02,18.376,18.366,23.03]
[1688236322451,23.02,18.376,18.367,1.96711254]
[1688236322653,23.02,18.376,18.368,23.028]
[1688236323254,1.16644237,18.375,18.366,23.03]
[1688236323456,23.022,18.374,18.366,23.03]
[1688236329570,56.3311524,18.373,18.364,23.033]
[1688236329751,23.024,18.372,18.364,23.033]
[1688236329947,55.0,18.373,18.362,90.3693]
[1688236330170,23.024,18.372,18.364,25.64198645]
[1688236330364,23.024,18.372,18.364,23.033]
[1688236334857,3.77047631,18.378,18.364,23.033]
[1688236335056,23.018,18.377,18.365,63.54285441]
[1688236335371,3.77047631,18.378,18.368,23.028]
[1688236335559,3.77047631,18.378,18.369,8.54285441]
[1688236335767,3.77047631,18.378,18.371,23.024]
[1688236336275,23.016,18.379,18.371,23.024]
[1688236338354,23.016,18.379,18.369,23.026]
[1688236338559,1.86563642,18.378,18.369,23.026]
[1688236338858,23.018,18.377,18.369,23.026]
[1688236341286,23.018,18.377,18.367,23.029]
[1688236341454,5.85471819,18.376,18.363,14.58710839]
[1688236341659,23.024,18.373,18.364,23.033]
[1688236345686,23.023,18.373,18.36,24.51]
[1688236345974,23.029,18.368,18.363,3.25350415]
[1688236346163,23.029,18.368,18.36,23.038]
[1688236346475,23.029,18.368,18.359,1.52075372]
[1688236347376,23.029,18.368,18.359,24.55975372]
[1688236347583,23.029,18.368,18.359,23.039]
[1688236349275,1.87675633,18.367,18.358,3.4011988]
[1688236349479,24.90775633,18.367,18.358,26.4421988]
[1688236349657,23.031,18.367,18.358,26.4421988]
[1688236352972,23.031,18.367,18.358,37.27939802]
[1688236354468,23.031,18.367,18.359,10.83719922]
[1688236354785,23.028,18.369,18.36,23.038]
[1688236355378,23.028,18.369,18.36,58.38519922]
[1688236359594,23.028,18.369,18.36,47.548]
[1688236362094,23.028,18.369,18.36,24.51]
[1688236363998,160.07811918,18.38,18.361,75.0]
[1688236364210,23.021,18.375,18.366,23.03]
[1688236370589,23.018,18.377,18.367,55.0]
[1688236370798,23.016,18.379,18.37,24.72]
[1688236371009,23.016,18.379,18.371,23.025]
[1688236371890,23.016,18.379,18.37,24.72]
[1688236372095,23.016,18.379,18.371,1.31009317]
[1688236372797,23.016,18.379,18.37,2.21803597]
[1688236374896,23.016,18.379,18.37,26.93803597]
[1688236375096,23.016,18.379,18.37,47.746]
[1688236382920,23.016,18.379,18.37,23.026]
[1688236386421,23.016,18.379,18.37,47.536]
[1688236386614,23.016,18.379,18.371,0.86650279]
[1688236388227,23.016,18.379,18.371,23.89150279]
[1688236388418,23.016,18.379,18.372,55.0]
[1688236388736,23.016,18.379,18.368,115.2994]
[1688236388910,23.016,18.379,18.37,1.95842261]
[1688236390521,1.84186148,18.378,18.369,2.21803597]
[1688236391048,23.02,18.376,18.369,2.21803597]
[1688236391249,23.02,18.376,18.368,92.2714]
[1688236391629,23.02,18.376,18.368,115.3004]
[1688236394242,23.02,18.376,18.345,28.44735951]
[1688236394243,23.02,18.376,18.362,23.035]
[1688236394538,23.02,18.376,18.362,8.48884623]
[1688236394539,23.029,18.368,18.362,8.48884623]
[1688236394746,23.029,18.368,18.356,23.043]
[1688236394930,23.029,18.368,18.353,104.44779922]
[1688236394931,9.45304454,18.367,18.354,10.87493583]
[1688236395131,23.035,18.364,18.354,10.87493583]
[1688236395646,9.45304454,18.363,18.354,10.87493583]
[1688236395846,23.038,18.361,18.354,10.87493583]
[1688236396050,23.038,18.361,18.353,116.6576]
[1688236397141,23.035,18.363,18.353,116.6576]
[1688236397353,23.035,18.363,18.354,4.07755321]
[1688236397644,23.035,18.363,18.356,23.043]
[1688236398447,23.034,18.365,18.356,23.043]
[1688236421161,23.031,18.367,18.356,23.043]
[1688236421362,2.51881495,18.366,18.357,2.54069523]
[1688236421559,2.51881495,18.366,18.358,23.04]
[1688236421762,4.84818837,18.372,18.358,23.04]
[1688236421954,17.09301669,18.374,18.359,65.6850398]
[1688236422159,23.024,18.372,18.362,23.035]
[1688236422574,17.09301669,18.371,18.362,23.035]
[1688236422875,40.11901669,18.371,18.362,23.035]
[1688236423069,23.026,18.371,18.362,23.035]
[1688236426376,23.026,18.371,18.361,4.24983067]
[1688236427385,72.09301669,18.37,18.356,23.043]
[1688236427564,23.031,18.366,18.357,5.22058929]
[1688236428073,23.031,18.366,18.357,23.042]
[1688236440784,23.03,18.368,18.357,33.87919922]
[1688236441084,23.03,18.368,18.359,23.039]
[1688236463805,47.757,18.37,18.359,23.039]
[1688236464104,23.025,18.372,18.362,23.035]
[1688236464996,12.93485143,18.371,18.362,23.035]
[1688236465897,23.025,18.372,18.363,2.42282024]
[1688236466100,23.025,18.372,18.364,23.034]
[1688236470109,23.025,18.372,18.362,23.035]
[1688236470312,23.025,18.372,18.363,2.35359514]
[1688236475919,23.029,18.368,18.361,98.8986]
[1688236477323,23.029,18.368,18.361,121.9356]
[1688236480218,23.029,18.368,18.361,23.037]
[1688236480403,23.029,18.368,18.357,23.041]
[1688236480609,4.7875912,18.367,18.357,23.041]
[1688236480910,23.034,18.364,18.357,23.041]
[1688236481507,24.73,18.37,18.357,23.041]
[1688236481508,23.032,18.366,18.357,23.041]
[1688236490746,23.03,18.368,18.357,23.041]
[1688236490929,3.75289701,18.367,18.358,1.40847704]
[1688236491231,3.75289701,18.367,18.36,23.039]
[1688236491525,23.03,18.368,18.36,23.039]
[1688236494129,1.0965568,18.367,18.36,23.039]
[1688236494432,4.34847332,18.369,18.36,23.039]
[1688236494934,4.34847332,18.37,18.36,23.039]
[1688236496733,27.37447332,18.37,18.36,23.039]
[1688236496937,23.026,18.37,18.36,23.039]
[1688236497735,47.756,18.37,18.36,23.039]
[1688236497935,4.34847332,18.369,18.358,23.04]
[1688236498249,23.031,18.367,18.359,3.81573464]
[1688236498419,23.031,18.367,18.359,23.04]
[1688236501439,23.028,18.369,18.359,23.04]
[1688236501739,2.55182281,18.368,18.359,23.04]
[1688236502432,23.029,18.368,18.359,23.04]
[1688236506544,1.27730052,18.367,18.359,23.04]
[1688236508849,4.03708761,18.374,18.362,23.036]
[1688236509053,4.03708761,18.374,18.363,4.77700505]
[1688236509231,23.025,18.371,18.363,27.81100505]
[1688236509432,23.025,18.371,18.363,23.034]
[1688236519934,8.4401766,18.376,18.363,23.034]
[1688236520141,23.021,18.374,18.364,8.51952326]
[1688236520344,20.0,18.373,18.364,8.51952326]
[1688236520542,23.025,18.372,18.364,8.51952326]
[1688236520758,23.025,18.372,18.363,23.034]
[1688236520951,18.80315125,18.371,18.363,23.034]
[1688236521154,41.82815125,18.371,18.363,23.034]
[1688236521357,23.025,18.371,18.363,23.034]
[1688236521755,23.025,18.371,18.364,2.18061441]
[1688236523268,3.7996531,18.37,18.364,2.18061441]
[1688236523561,23.026,18.37,18.364,2.18061441]
[1688236525568,23.025,18.371,18.364,25.21361441]
[1688236525751,23.027,18.37,18.362,23.036]
[1688236526068,23.027,18.37,18.363,64.78370805]
[1688236533274,23.027,18.37,18.363,9.78370805]
[1688236533475,9.98144585,18.369,18.361,16.33305604]
[1688236533657,23.029,18.368,18.362,55.0]
[1688236533858,23.029,18.368,18.361,16.33305604]
[1688236537573,23.029,18.368,18.361,39.37005604]
[1688236540378,23.029,18.368,18.361,16.33305604]
[1688236540764,18.80315125,18.367,18.351,17.12000737]
[1688236540965,23.036,18.363,18.354,23.046]
[1688236541265,23.036,18.363,18.355,40.16400737]
[1688236542583,23.033,18.365,18.355,40.16400737]
[1688236542777,18.80315125,18.364,18.355,40.16400737]
[1688236546484,18.80315125,18.364,18.355,51.00120659]
[1688236548886,18.80315125,18.366,18.355,51.00120659]
[1688236549182,18.80315125,18.366,18.356,10.83719922]
[1688236549377,18.80315125,18.366,18.359,23.04]
[1688236550185,18.80315125,18.366,18.36,17.12000737]
[1688236550588,18.80315125,18.366,18.36,40.15900737]
[1688236550792,18.80315125,18.366,18.36,23.039]
[1688236553593,18.80315125,18.366,18.358,23.04]
[1688236553788,41.83415125,18.366,18.359,17.12000737]
[1688236555990,41.83415125,18.366,18.359,23.04]
[1688236557492,18.80315125,18.366,18.359,23.04]
[1688236557672,18.80315125,18.367,18.36,17.12000737]
[1688236558489,18.80315125,18.367,18.36,40.15900737]
[1688236558687,18.80315125,18.367,18.36,23.039]
[1688236561097,41.83315125,18.367,18.36,23.039]
[1688236561891,41.83315125,18.367,18.358,23.04]
[1688236562187,41.83315125,18.367,18.359,40.16000737]
[1688236573208,41.83315125,18.367,18.359,17.12000737]
[1688236573407,41.83315125,18.367,18.357,17.12000737]
[1688236575007,41.83315125,18.367,18.358,23.04]
[1688236575209,41.83315125,18.367,18.359,17.12000737]
[1688236575403,41.83315125,18.367,18.359,40.16000737]
[1688236578798,41.83315125,18.367,18.359,17.12000737]
[1688236579310,41.83315125,18.367,18.359,23.039]
[1688236581625,18.80315125,18.367,18.359,23.039]
[1688236581832,18.80315125,18.368,18.359,23.039]
[1688236582325,18.80315125,18.368,18.361,23.036]
[1688236582509,18.80315125,18.368,18.362,17.12000737]
[1688236582705,41.83215125,18.368,18.362,17.12000737]
[1688236583029,23.029,18.368,18.359,23.04]
[1688236583233,23.029,18.368,18.36,17.12000737]
[1688236583432,18.80315125,18.367,18.36,17.12000737]
[1688236583925,23.03,18.367,18.36,40.15800737]
[1688236584132,23.03,18.367,18.36,17.12000737]
[1688236584316,23.03,18.367,18.359,17.12000737]
[1688236584734,18.80315125,18.366,18.358,23.04]
[1688236584935,41.83515125,18.366,18.358,23.04]
[1688236585135,41.83515125,18.366,18.359,17.12000737]
[1688236585722,18.80315125,18.366,18.359,40.16000737]
[1688236585933,18.80315125,18.367,18.359,40.16000737]
[1688236587031,18.80315125,18.367,18.361,40.15700737]
[1688236587241,23.03,18.368,18.361,40.15700737]
[1688236590445,23.028,18.369,18.361,40.15700737]
[1688236590619,18.80315125,18.368,18.361,40.15700737]
[1688236594546,41.83215125,18.368,18.361,40.15700737]
[1688236594729,23.029,18.368,18.361,40.15700737]
[1688236595333,23.029,18.368,18.361,17.12000737]
[1688236595639,41.83315125,18.367,18.361,17.12000737]
[1688236595841,23.03,18.367,18.361,17.12000737]
[1688236596826,23.028,18.369,18.361,40.15700737]
[1688236614639,23.028,18.369,18.361,17.12000737]
[1688236614943,18.80315125,18.368,18.361,17.12000737]
[1688236615154,23.031,18.367,18.361,17.12000737]
[1688236615452,23.031,18.367,18.36,17.12000737]
[1688236617356,23.031,18.367,18.36,40.15900737]
[1688236622762,23.028,18.369,18.36,40.15900737]
[1688236622958,18.80315125,18.368,18.36,40.15900737]
[1688236623163,41.83215125,18.368,18.36,40.15900737]
[1688236623459,23.029,18.368,18.36,40.15900737]
[1688236624455,18.80315125,18.373,18.36,64.73900737]
[1688236624456,23.027,18.37,18.36,64.73900737]
[1688236624660,18.80315125,18.369,18.36,64.73900737]
[1688236624853,23.029,18.368,18.36,17.12000737]
[1688236625161,18.80315125,18.367,18.357,17.12000737]
[1688236625355,23.034,18.364,18.357,17.12000737]
[1688236626368,23.034,18.364,18.357,40.16200737]
[1688236629267,23.032,18.366,18.357,40.16200737]
[1688236629454,18.80315125,18.365,18.357,40.16200737]
[1688236629860,18.80315125,18.365,18.357,50.99920659]
[1688236630057,18.80315125,18.367,18.358,65.83719922]
[1688236630260,18.80315125,18.367,18.36,47.618]
[1688236630461,23.03,18.368,18.36,47.618]
[1688236630663,23.03,18.368,18.361,17.12000737]
[1688236633064,23.03,18.368,18.359,17.12000737]
[1688236633065,18.80315125,18.367,18.359,17.12000737]
[1688236633570,18.80315125,18.365,18.359,17.12000737]
[1688236633768,41.83615125,18.365,18.359,17.12000737]
[1688236633973,23.033,18.365,18.359,17.12000737]
[1688236637380,23.031,18.367,18.359,40.16000737]
[1688236637583,18.80315125,18.366,18.359,40.16000737]
[1688236637876,18.80315125,18.366,18.359,50.99720659]
[1688236638178,18.80315125,18.368,18.359,50.99720659]
[1688236638874,18.80315125,18.368,18.36,24.73]
[1688236639080,18.80315125,18.368,18.361,40.15700737]
[1688236639373,23.028,18.369,18.361,40.15700737]
[1688236641674,18.80315125,18.368,18.361,17.12000737]
[1688236641854,41.83315125,18.368,18.361,17.12000737]
[1688236642055,23.03,18.368,18.361,17.12000737]
[1688236643777,18.80315125,18.373,18.362,20.0]
[1688236643974,41.82515125,18.374,18.365,23.032]
[1688236644361,41.82515125,18.374,18.366,17.12000737]
[1688236644570,41.82515125,18.374,18.366,40.15100737]
[1688236645771,18.80315125,18.374,18.366,40.15100737]
[1688236645973,23.02,18.376,18.366,40.15100737]
[1688236646476,18.80315125,18.375,18.366,40.15100737]
[1688236648577,41.82315125,18.375,18.366,40.15100737]
[1688236648781,23.02,18.375,18.366,40.15100737]
[1688236651783,18.80315125,18.379,18.366,40.15100737]
[1688236652887,18.80315125,18.375,18.366,40.15100737]
[1688236658295,18.80315125,18.377,18.366,40.15100737]
[1688236659980,41.82115125,18.377,18.366,40.15100737]
[1688236677302,18.80315125,18.377,18.366,40.15100737]
[1688236677493,18.80315125,18.379,18.366,50.98820659]
[1688236677693,18.80315125,18.379,18.366,110.28220659]
[1688236678814,41.81915125,18.379,18.366,110.28220659]
[1688236678990,55.0,18.378,18.366,50.98820659]
[1688236679190,23.02,18.375,18.366,40.15100737]
[1688236679708,18.80315125,18.374,18.366,40.15100737]
[1688236679908,41.82215125,18.376,18.366,40.15100737]
[1688236680291,18.80315125,18.376,18.366,40.15100737]
[1688236680489,18.80315125,18.377,18.366,40.15100737]
[1688236680806,41.82115125,18.377,18.366,40.15100737]
[1688236684796,41.82115125,18.377,18.366,50.98820659]
[1688236685012,41.82115125,18.377,18.367,55.0]
[1688236685211,18.80315125,18.377,18.37,23.026]
[1688236685718,18.80315125,18.377,18.371,17.12000737]
[1688236690614,41.82115125,18.377,18.371,17.12000737]
[1688236690815,41.82115125,18.377,18.368,17.12000737]
[1688236691509,41.82115125,18.377,18.368,40.14900737]
[1688236700639,18.80315125,18.377,18.368,40.14900737]
[1688236700934,23.012,18.382,18.372,23.023]
[1688236701322,18.80315125,18.381,18.373,17.12000737]
[1688236701520,18.80315125,18.381,18.374,23.021]
[1688236701912,23.013,18.381,18.372,23.023]
[1688236702122,23.013,18.381,18.373,17.12000737]
[1688236702329,18.80315125,18.38,18.373,17.12000737]
[1688236702528,41.81715125,18.38,18.373,17.12000737]
[1688236702730,23.014,18.38,18.373,17.12000737]
[1688236705438,23.014,18.38,18.373,40.14200737]
[1688236706940,23.013,18.381,18.373,17.12000737]
[1688236707126,18.80315125,18.38,18.373,17.12000737]
[1688236707323,18.80315125,18.385,18.374,23.021]
[1688236707524,23.013,18.381,18.375,17.12000737]
[1688236707725,23.013,18.381,18.373,17.12000737]
[1688236708122,18.80315125,18.38,18.371,17.12000737]
[1688236708438,23.015,18.379,18.373,17.12000737]
[1688236708636,18.80315125,18.385,18.373,17.12000737]
[1688236708940,18.80315125,18.381,18.373,40.14200737]
[1688236709123,23.014,18.38,18.373,40.14200737]
[1688236709540,23.014,18.38,18.373,17.12000737]
[1688236709729,23.014,18.38,18.372,17.12000737]
[1688236710827,23.014,18.38,18.373,23.022]
[1688236711142,23.014,18.38,18.374,17.12000737]
[1688236711331,18.80315125,18.379,18.372,23.024]
[1688236711744,23.014,18.38,18.373,17.12000737]
[1688236712533,18.80315125,18.379,18.371,40.14500737]